fUSD/lending_fUSD_20240613
["ID","MTS","AMOUNT","RATE_DAILY","PERIOD"]
[329378678,1718292709544,-291.2191708,0.00027671,3]
[329378679,1718292709561,-500.0,0.00027671,3]
[329378680,1718292709576,-500.0,0.00027671,3]
[329378681,1718292709595,-502.75,0.00027671,3]
[329378682,1718292709611,-535.86,0.00027671,3]
[329378683,1718292709635,-1384.42,0.00027671,3]
[329378684,1718292709691,-822.29,0.00027671,3]
[329378685,1718292709706,-521.6,0.00027671,3]
[329378686,1718292709757,-500.0,0.00027671,3]
[329378687,1718292709777,-500.0,0.00027671,3]
[329378688,1718292709791,-500.0,0.00027671,3]
[329378689,1718292709837,-1073.92,0.00027671,3]
[329378690,1718292709851,-500.0,0.00027671,3]
[329378691,1718292709916,-2065.58,0.00027671,3]
[329378692,1718292709931,-500.0,0.00027671,3]
[329378693,1718292709983,-649.62,0.00027671,3]
[329378694,1718292710014,-550.84,0.00027671,3]
[329378695,1718292710039,-500.0,0.00027671,3]
[329378696,1718292710053,-500.0,0.00027671,3]
[329378697,1718292710067,-928.65,0.00027671,3]
[329378698,1718292710087,-502.28,0.00027671,3]
[329378699,1718292710104,-691.98,0.00027671,3]
[329378700,1718292710121,-651.06,0.00027671,3]
[329378701,1718292710132,-500.0,0.00027671,3]
[329378702,1718292710146,-516.01,0.00027671,3]
[329378703,1718292710159,-1917.61,0.00027671,3]
[329378704,1718292710204,-1173.15,0.00027671,3]
[329378705,1718292710243,-500.0,0.00027671,3]
[329378706,1718292710291,-500.0,0.00027671,3]
[329378707,1718292710320,-1388.4,0.00027671,3]
[329378708,1718292710359,-719.63,0.00027671,3]
[329378709,1718292710372,-181.457018,0.000277,2]
[329378710,1718292710384,-161.903072,0.00027702,2]
[329378711,1718292710410,-953.616187,0.00027702,2]
[329378712,1718292710428,-172.114938,0.00027702,2]
[329378713,1718292710444,-385.056803,0.00027702,2]
[329378714,1718292710455,-476.808093,0.00027702,2]
[329378715,1718292710467,-770.113606,0.00027702,2]
[329378716,1718292710478,-990.123474,0.00027702,2]
[329378717,1718292710489,-167.706844,0.00027702,2]
[329378718,1718292710499,-182.908713,0.00027702,2]
[329378719,1718292710526,-190.93315,0.00027702,2]
[329378720,1718292710551,-770.113606,0.00027702,2]
[329378721,1718292710563,-500.0,0.00027748,3]
[329378722,1718292710589,-500.0,0.00027748,3]
[329378723,1718292710631,-423.40552004,0.00027748,3]
[329378724,1718292710642,-500.0,0.00027748,3]
[329378725,1718292710661,-197.29,0.00027748,3]
[329378726,1718292710688,-343.93,0.00027748,3]
[329378727,1718292710717,-150.97,0.00027748,3]
[329378728,1718292710733,-603.71,0.00027748,3]
[329378729,1718292710743,-286.57,0.00027748,3]
[329378730,1718292710754,-182.75,0.00027748,3]
[329378731,1718292710765,-210.76,0.00027748,3]
[329378732,1718292710777,-307.11602884,0.00027748,3]
[329378733,1718292710807,-500.0,0.00027748,3]
[329378734,1718292710822,-176.75,0.00027748,3]
[329378735,1718292710836,-178.58053481,0.00027748,3]
[329378736,1718292710848,-500.0,0.00027748,3]
[329378737,1718292710861,-500.0,0.00027748,3]
[329378738,1718292710873,-445.26766574,0.00027748,3]
[329378739,1718292710904,-430.36043438,0.00027748,3]
[329378740,1718292710915,-415.4,0.00027748,3]
[329378741,1718292710929,-504.75327629,0.00027748,3]
[329378742,1718292710941,-208.2,0.00027748,3]
[329378743,1718292710960,-500.0,0.00027748,3]
[329378744,1718292710970,-500.0,0.00027748,3]
[329378745,1718292710992,-500.0,0.00027748,3]
[329378746,1718292711002,-291.25143985,0.00027748,3]
[329378747,1718292711019,-500.0,0.00027748,3]
[329378748,1718292711034,-500.0,0.00027748,3]
[329378749,1718292711053,-171.84,0.00027748,3]
[329378750,1718292711065,-500.0,0.00027748,3]
[329378751,1718292711086,-500.0,0.00027748,3]
[329378752,1718292711114,-539.36077314,0.00027748,3]
[329378753,1718292711126,-516.23334041,0.00027748,3]
[329378754,1718292711156,-548.25144533,0.00027748,3]
[329378755,1718292711178,-500.0,0.00027748,3]
[329378756,1718292711215,-500.0,0.00027748,3]
[329378757,1718292711234,-500.0,0.00027748,3]
[329378758,1718292711269,-500.0,0.00027748,3]
[329378759,1718292711298,-500.0,0.00027748,3]
[329378760,1718292711344,-614.52,0.00027748,3]
[329378761,1718292711355,-210.98,0.00027748,3]
[329378762,1718292711371,-500.0,0.00027748,3]
[329378763,1718292711390,-500.0,0.00027748,3]
[329378764,1718292711404,-500.0,0.00027748,3]
[329378765,1718292711447,-502.86,0.00027748,3]
[329378766,1718292711470,-500.0,0.00027748,3]
[329378767,1718292711490,-500.0,0.00027748,3]
[329378768,1718292711504,-500.0,0.00027748,3]
[329378769,1718292711523,-500.0,0.00027748,3]
[329378770,1718292711545,-198.58,0.00027748,3]
[329378771,1718292711565,-500.0,0.00027748,3]
[329378772,1718292711628,-500.0,0.00027748,3]
[329378773,1718292711656,-500.0,0.00027748,3]
[329378774,1718292711711,-541.6898998,0.00027748,3]
[329378775,1718292711731,-500.0,0.00027748,3]
[329378776,1718292711746,-500.0,0.00027748,3]
[329378777,1718292711764,-500.0,0.00027748,3]
[329378778,1718292711779,-568.81571781,0.00027748,3]
[329378779,1718292711804,-500.0,0.00027748,3]
[329378780,1718292711818,-500.0,0.00027748,3]
[329378781,1718292711841,-442.29086452,0.00027748,3]
[329378782,1718292711912,-500.0,0.00027748,3]
[329378783,1718292711935,-195.25970446,0.00027748,3]
[329378784,1718292711992,-500.0,0.00027748,3]
[329378785,1718292712032,-500.0,0.00027748,3]
[329378786,1718292712077,-500.0,0.00027748,3]
[329378787,1718292712095,-500.0,0.00027748,3]
[329378788,1718292712107,-500.0,0.00027748,3]
[329378789,1718292712122,-219.29,0.00027748,3]
[329378790,1718292712133,-500.0,0.00027748,3]
[329378791,1718292712150,-500.0,0.00027748,3]
[329378792,1718292712183,-500.0,0.00027748,3]
[329378793,1718292712227,-500.0,0.00027748,3]
[329378794,1718292712253,-500.0,0.00027748,3]
[329378795,1718292712264,-166.65449596,0.00027748,3]
[329378796,1718292712284,-500.0,0.00027748,3]
[329378797,1718292712295,-557.0578874,0.00027748,3]
[329378798,1718292712308,-500.0,0.00027748,3]
[329378799,1718292712337,-323.65,0.00027748,3]
[329378800,1718292712386,-1306.39,0.00027748,3]
[329378801,1718292712408,-500.0,0.00027748,3]
[329378802,1718292712418,-500.0,0.00027748,3]
[329378803,1718292712433,-500.0,0.00027748,3]
[329378804,1718292712447,-500.0,0.00027748,3]
[329378805,1718292712460,-500.0,0.00027748,3]
[329378806,1718292712489,-500.0,0.00027748,3]
[329378807,1718292712501,-500.0,0.00027748,3]
[329378808,1718292712524,-500.0,0.00027748,3]
[329378809,1718292712537,-500.0,0.00027748,3]
[329378810,1718292712548,-482.82,0.00027748,3]
[329378811,1718292712560,-500.0,0.00027748,3]
[329378812,1718292712573,-500.0,0.00027748,3]
[329378813,1718292712604,-500.0,0.00027748,3]
[329378814,1718292712614,-500.0,0.00027748,3]
[329378815,1718292712632,-284.81,0.00027748,3]
[329378816,1718292712647,-500.0,0.00027748,3]
[329378817,1718292712671,-500.0,0.00027748,3]
[329378818,1718292712722,-568.44033908,0.00027748,3]
[329378819,1718292712733,-500.0,0.00027748,3]
[329378820,1718292712750,-527.48875321,0.00027748,3]
[329378821,1718292712763,-500.0,0.00027748,3]
[329378822,1718292712791,-500.0,0.00027748,3]
[329378823,1718292712805,-500.0,0.00027748,3]
[329378824,1718292712841,-500.0,0.00027748,3]
[329378825,1718292712866,-500.0,0.00027748,3]
[329378826,1718292712877,-500.0,0.00027748,3]
[329378827,1718292712896,-500.0,0.00027748,3]
[329378828,1718292712908,-542.9065224,0.00027748,3]
[329378829,1718292712924,-500.0,0.00027748,3]
[329378830,1718292712946,-500.0,0.00027748,3]
[329378831,1718292712970,-511.20945793,0.00027748,3]
[329378832,1718292713020,-500.0,0.00027748,3]
[329378833,1718292713032,-500.0,0.00027748,3]
[329378834,1718292713045,-500.0,0.00027748,3]
[329378835,1718292713057,-500.0,0.00027748,3]
[329378836,1718292713068,-500.0,0.00027748,3]
[329378837,1718292713083,-253.24195395,0.00027748,3]
[329378838,1718292713095,-541.26533238,0.00027748,3]
[329378839,1718292713111,-178.21970292,0.00027871,2]
[329378840,1718292713123,-153.2913197,0.00027905,2]
[329378841,1718292713142,-1331.03925421,0.00027936,2]
[329378842,1718292713153,-500.0,0.00027944,3]
[329378843,1718292713170,-500.0,0.00027944,3]
[329378844,1718292713189,-500.0,0.00027944,3]
[329378845,1718292713220,-500.0,0.00027944,3]
[329378846,1718292713253,-500.0,0.00027944,3]
[329378847,1718292713264,-154.15,0.00027944,3]
[329378848,1718292713275,-724.51,0.00027944,3]
[329378849,1718292713287,-500.0,0.00027944,3]
[329378850,1718292713298,-500.0,0.00027944,3]
[329378851,1718292713313,-273.81828252,0.00027944,3]
[329378852,1718292713335,-500.0,0.00027944,3]
[329378853,1718292713347,-500.0,0.00027944,3]
[329378854,1718292713361,-500.0,0.00027944,3]
[329378855,1718292713376,-514.8,0.00027944,3]
[329378856,1718292713388,-500.0,0.00027944,3]
[329378857,1718292713398,-500.0,0.00027944,3]
[329378858,1718292713409,-820.37,0.00027944,3]
[329378859,1718292713421,-1564.46,0.00027944,3]
[329378860,1718292713443,-1160.7,0.00027944,3]
[329378861,1718292713476,-500.0,0.00027944,3]
[329378862,1718292713488,-635.4,0.00027944,3]
[329378863,1718292713511,-984.58,0.00027944,3]
[329378864,1718292713531,-2101.74,0.00027944,3]
[329378865,1718292713545,-529.09,0.00027944,3]
[329378866,1718292713577,-1065.38,0.00027944,3]
[329378867,1718292713604,-2589.34,0.00027944,3]
[329378868,1718292713614,-3405.79,0.00027944,3]
[329378869,1718292713664,-789.36,0.00027944,3]
[329378870,1718292713684,-1078.35,0.00027944,3]
[329378871,1718292713716,-500.0,0.00027944,3]
[329378872,1718292713730,-500.0,0.00027944,3]
[329378873,1718292713741,-590.78,0.00027944,3]
[329378874,1718292713754,-571.61248189,0.00027944,3]
[329378875,1718292713766,-500.0,0.00027944,3]
[329378876,1718292713805,-689.43,0.00027944,3]
[329378877,1718292713821,-628.08,0.00027944,3]
[329378878,1718292713842,-731.88,0.00027944,3]
[329378879,1718292713886,-500.0,0.00027944,3]
[329378880,1718292713896,-500.0,0.00027944,3]
[329378881,1718292713907,-539.27,0.00027944,3]
[329378882,1718292713918,-1216.69,0.00027944,3]
[329378883,1718292713940,-800.18,0.00027944,3]
[329378884,1718292713954,-1199.27,0.00027944,3]
[329378885,1718292713980,-1277.74,0.00027944,3]
[329378886,1718292713990,-1138.63,0.00027944,3]
[329378887,1718292714012,-500.0,0.00027944,3]
[329378888,1718292714031,-3406.93,0.00027944,3]
[329378889,1718292714048,-1350.88,0.00027944,3]
[329378890,1718292714082,-851.08,0.00027944,3]
[329378891,1718292714105,-500.0,0.00027944,3]
[329378892,1718292714136,-947.08,0.00027944,3]
[329378893,1718292714149,-727.33,0.00027944,3]
[329378894,1718292714183,-341.66,0.00027944,3]
[329378895,1718292714202,-505.2,0.00027944,3]
[329378896,1718292714243,-719.42,0.00027944,3]
[329378897,1718292714273,-1080.47,0.00027944,3]
[329378898,1718292714451,-2669.88,0.00027945,3]
[329378899,1718292714471,-500.0,0.00027945,3]
[329378900,1718292714484,-857.41,0.00027945,3]
[329378901,1718292714530,-1143.43,0.00027945,3]
[329378902,1718292714546,-500.0,0.00027945,3]
[329378903,1718292714572,-1621.77,0.00027945,3]
[329378904,1718292714589,-674.54,0.00027945,3]
[329378905,1718292714616,-500.0,0.00027945,3]
[329378906,1718292714630,-1174.3,0.00027945,3]
[329378907,1718292714648,-500.0,0.00027945,3]
[329378908,1718292714664,-500.0,0.00027945,3]
[329378909,1718292714684,-1348.57,0.00027945,3]
[329378910,1718292714698,-500.0,0.00027945,3]
[329378911,1718292714710,-500.0,0.00027945,3]
[329378912,1718292714722,-502.75,0.00027945,3]
[329378913,1718292714745,-535.86,0.00027945,3]
[329378914,1718292714762,-1384.42,0.00027945,3]
[329378915,1718292714776,-822.29,0.00027945,3]
[329378916,1718292714792,-521.6,0.00027945,3]
[329378917,1718292714807,-500.0,0.00027945,3]
[329378918,1718292714837,-273.1205968,0.00027945,3]
[329378919,1718292714849,-500.0,0.00027945,3]
[329378920,1718292714867,-1073.92,0.00027945,3]
[329378921,1718292714881,-373.4,0.00027945,3]
[329378922,1718292714895,-2065.58,0.00027945,3]
[329378923,1718292714909,-500.0,0.00027945,3]
[329378924,1718292714922,-649.62,0.00027945,3]
[329378925,1718292714956,-550.84,0.00027945,3]
[329378926,1718292714990,-500.0,0.00027945,3]
[329378927,1718292715008,-500.0,0.00027945,3]
[329378928,1718292715024,-928.65,0.00027945,3]
[329378929,1718292715040,-502.28,0.00027945,3]
[329378930,1718292715061,-691.98,0.00027945,3]
[329378931,1718292715104,-651.06,0.00027945,3]
[329378932,1718292715180,-500.0,0.00027945,3]
[329378933,1718292715198,-516.01,0.00027945,3]
[329378934,1718292715212,-1917.61,0.00027945,3]
[329378935,1718292715227,-1173.15,0.00027945,3]
[329378936,1718292715268,-500.0,0.00027945,3]
[329378937,1718292715292,-500.0,0.00027945,3]
[329378938,1718292715327,-1388.4,0.00027945,3]
[329378939,1718292715346,-719.63,0.00027945,3]
[329378940,1718292715369,-154.24759554,0.00027969,2]
[329378941,1718292715387,-200.0,0.00027993,30]
[329378942,1718292715412,-469.32593514,0.00028,2]
[329378943,1718292715433,-165.47442074,0.00028001,2]
[329378944,1718292715456,-429.69,0.00028022,3]
[329378945,1718292715508,-500.0,0.00028022,3]
[329378946,1718292715547,-500.0,0.00028022,3]
[329378947,1718292715592,-426.68047254,0.00028022,3]
[329378948,1718292715628,-500.0,0.00028022,3]
[329378949,1718292715642,-175.85705203,0.00028022,3]
[329378950,1718292715660,-500.0,0.00028022,3]
[329378951,1718292715673,-409.7239031,0.00028022,3]
[329378952,1718292715709,-500.0,0.00028022,3]
[329378953,1718292715767,-605.59285427,0.00028022,3]
[329378954,1718292715804,-500.0,0.00028022,3]
[329378955,1718292715822,-500.0,0.00028022,3]
[329378956,1718292715842,-500.0,0.00028022,3]
[329378957,1718292715870,-485.0552341,0.00028022,3]
[329378958,1718292715892,-500.0,0.00028022,3]
[329378959,1718292715919,-500.0,0.00028022,3]
[329378960,1718292715945,-618.17,0.00028022,3]
[329378961,1718292715977,-500.0,0.00028022,3]
[329378962,1718292716008,-500.0,0.00028022,3]
[329378963,1718292716040,-500.0,0.00028022,3]
[329378964,1718292716072,-500.0,0.00028022,3]
[329378965,1718292716122,-500.0,0.00028022,3]
[329378966,1718292716143,-500.0,0.00028022,3]
[329378967,1718292716161,-500.0,0.00028022,3]
[329378968,1718292716217,-500.0,0.00028022,3]
[329378969,1718292716228,-188.59,0.00028022,3]
[329378970,1718292716242,-500.0,0.00028022,3]
[329378971,1718292716263,-500.0,0.00028022,3]
[329378972,1718292716286,-500.0,0.00028022,3]
[329378973,1718292716302,-500.0,0.00028022,2]
[329378974,1718292716324,-234.51,0.00028022,3]
[329378975,1718292716392,-500.0,0.00028022,3]
[329378976,1718292716414,-377.95,0.00028022,3]
[329378977,1718292716444,-500.0,0.00028022,3]
[329378978,1718292716471,-1306.39,0.00028022,3]
[329378979,1718292716489,-641.08583919,0.00028022,3]
[329378980,1718292716501,-279.44,0.00028022,3]
[329378981,1718292716513,-500.0,0.00028022,3]
[329378982,1718292716568,-500.0,0.00028022,3]
[329378983,1718292716590,-500.0,0.00028022,3]
[329378984,1718292716605,-384.37,0.00028022,3]
[329378985,1718292716623,-500.0,0.00028022,3]
[329378986,1718292716652,-500.0,0.00028022,3]
[329378987,1718292716663,-500.0,0.00028022,3]
[329378988,1718292716680,-338.46664415,0.00028022,3]
[329378989,1718292716694,-500.0,0.00028022,3]
[329378990,1718292716708,-376.56244272,0.00028022,3]
[329378991,1718292716720,-524.58316728,0.00028022,3]
[329378992,1718292716733,-500.0,0.00028022,3]
[329378993,1718292716746,-500.0,0.00028022,3]
[329378994,1718292716758,-500.0,0.00028022,3]
[329378995,1718292716770,-500.0,0.00028022,3]
[329378996,1718292716791,-500.0,0.00028022,3]
[329378997,1718292716835,-500.0,0.00028022,3]
[329378998,1718292716851,-508.088848,0.00028022,3]
[329378999,1718292716874,-500.0,0.00028022,3]
[329379000,1718292716900,-500.0,0.00028022,3]
[329379001,1718292716924,-500.0,0.00028022,3]
[329379002,1718292716989,-500.0,0.00028022,3]
[329379003,1718292717000,-953.616187,0.00028048,2]
[329379004,1718292717024,-385.056803,0.00028048,2]
[329379005,1718292717053,-476.808093,0.00028048,2]
[329379006,1718292717066,-770.113606,0.00028048,2]
[329379007,1718292717081,-990.123474,0.00028048,2]
[329379008,1718292717096,-770.113606,0.00028048,2]
[329379009,1718292717122,-178.21970292,0.00028068,2]
[329379010,1718292717140,-659.0,0.00028119,5]
[329379011,1718292717152,-500.0,0.00028122,2]
[329379012,1718292717173,-700.0,0.00028122,2]
[329379013,1718292717196,-2800.0,0.00028122,2]
[329379014,1718292717209,-154.24759554,0.00028122,2]
[329379015,1718292717243,-178.21970292,0.00028124,2]
[329379016,1718292717259,-178.21970292,0.00028151,2]
[329379017,1718292717271,-153.68250368,0.00028154,2]
[329379018,1718292717288,-178.21970292,0.00028155,2]
[329379019,1718292717316,-152.96556497,0.00028159,2]
[329379020,1718292717360,-153.2913197,0.00028195,2]
[329379021,1718292717372,-170.83,0.00028199,2]
[329379022,1718292717382,-323.31619232,0.00028218,3]
[329379023,1718292717435,-500.0,0.00028218,3]
[329379024,1718292717457,-500.0,0.00028218,3]
[329379025,1718292717468,-500.0,0.00028218,3]
[329379026,1718292717500,-500.0,0.00028218,3]
[329379027,1718292717515,-154.15,0.00028218,3]
[329379028,1718292717528,-724.51,0.00028218,3]
[329379029,1718292717564,-500.0,0.00028218,3]
[329379030,1718292717594,-517.41514954,0.00028218,3]
[329379031,1718292717612,-500.0,0.00028218,3]
[329379032,1718292717637,-500.0,0.00028218,3]
[329379033,1718292717650,-500.0,0.00028218,3]
[329379034,1718292717668,-514.8,0.00028218,3]
[329379035,1718292717686,-500.0,0.00028218,3]
[329379036,1718292717747,-621.23,0.00028218,3]
[329379037,1718292717759,-820.37,0.00028218,3]
[329379038,1718292717771,-1564.46,0.00028218,3]
[329379039,1718292717799,-1160.7,0.00028218,3]
[329379040,1718292717832,-500.0,0.00028218,3]
[329379041,1718292717864,-635.4,0.00028218,3]
[329379042,1718292717888,-984.58,0.00028218,3]
[329379043,1718292717918,-2101.74,0.00028218,3]
[329379044,1718292717956,-529.09,0.00028218,3]
[329379045,1718292717970,-1065.38,0.00028218,3]
[329379046,1718292717981,-2589.34,0.00028218,3]
[329379047,1718292718000,-3405.79,0.00028218,3]
[329379048,1718292718020,-789.36,0.00028218,3]
[329379049,1718292718044,-1078.35,0.00028218,3]
[329379050,1718292718064,-500.0,0.00028218,3]
[329379051,1718292718083,-500.0,0.00028218,3]
[329379052,1718292718101,-590.78,0.00028218,3]
[329379053,1718292718128,-500.0,0.00028218,3]
[329379054,1718292718152,-689.43,0.00028218,3]
[329379055,1718292718186,-628.08,0.00028218,3]
[329379056,1718292718198,-731.88,0.00028218,3]
[329379057,1718292718219,-500.0,0.00028218,3]
[329379058,1718292718231,-500.0,0.00028218,3]
[329379059,1718292718267,-539.27,0.00028218,3]
[329379060,1718292718278,-1216.69,0.00028218,3]
[329379061,1718292718332,-800.18,0.00028218,3]
[329379062,1718292718390,-1199.27,0.00028218,3]
[329379063,1718292718428,-1277.74,0.00028218,3]
[329379064,1718292718458,-1138.63,0.00028218,3]
[329379065,1718292718472,-500.0,0.00028218,3]
[329379066,1718292718504,-3406.93,0.00028218,3]
[329379067,1718292718556,-1350.88,0.00028218,3]
[329379068,1718292718569,-851.08,0.00028218,3]
[329379069,1718292718582,-347.1766595,0.00028218,3]
[329379070,1718292718599,-947.08,0.00028218,3]
[329379071,1718292718614,-727.33,0.00028218,3]
[329379072,1718292718649,-505.2,0.00028218,3]
[329379073,1718292718660,-719.42,0.00028218,3]
[329379074,1718292718670,-1080.47,0.00028218,3]
[329379075,1718292718685,-2669.88,0.00028219,3]
[329379076,1718292718709,-526.69,0.00028219,3]
[329379077,1718292718723,-857.41,0.00028219,3]
[329379078,1718292718760,-1143.43,0.00028219,3]
[329379079,1718292718780,-500.0,0.00028219,3]
[329379080,1718292718820,-1621.77,0.00028219,3]
[329379081,1718292718833,-674.54,0.00028219,3]
[329379082,1718292718845,-500.0,0.00028219,3]
[329379083,1718292718869,-1174.3,0.00028219,3]
[329379084,1718292718893,-500.0,0.00028219,3]
[329379085,1718292718912,-500.0,0.00028219,3]
[329379086,1718292718926,-1348.57,0.00028219,3]
[329379087,1718292718945,-500.0,0.00028219,3]
[329379088,1718292718981,-500.0,0.00028219,3]
[329379089,1718292719024,-502.75,0.00028219,3]
[329379090,1718292719040,-535.86,0.00028219,3]
[329379091,1718292719064,-1384.42,0.00028219,3]
[329379092,1718292719086,-822.29,0.00028219,3]
[329379093,1718292719104,-521.6,0.00028219,3]
[329379094,1718292719116,-500.0,0.00028219,3]
[329379095,1718292719127,-500.0,0.00028219,3]
[329379096,1718292719153,-1073.92,0.00028219,3]
[329379097,1718292719185,-2065.58,0.00028219,3]
[329379098,1718292719212,-500.0,0.00028219,3]
[329379099,1718292719227,-649.62,0.00028219,3]
[329379100,1718292719240,-550.84,0.00028219,3]
[329379101,1718292719258,-500.0,0.00028219,3]
[329379102,1718292719269,-500.0,0.00028219,3]
[329379103,1718292719283,-928.65,0.00028219,3]
[329379104,1718292719300,-502.28,0.00028219,3]
[329379105,1718292719314,-691.98,0.00028219,3]
[329379106,1718292719326,-651.06,0.00028219,3]
[329379107,1718292719340,-500.0,0.00028219,3]
[329379108,1718292719352,-516.01,0.00028219,3]
[329379109,1718292719364,-1917.61,0.00028219,3]
[329379110,1718292719376,-1173.15,0.00028219,3]
[329379111,1718292719387,-500.0,0.00028219,3]
[329379112,1718292719402,-500.0,0.00028219,3]
[329379113,1718292719440,-1388.4,0.00028219,3]
[329379114,1718292719452,-719.63,0.00028219,3]
[329379115,1718292719466,-500.0,0.00028296,3]
[329379116,1718292719493,-291.3926165,0.00028296,3]
[329379117,1718292719521,-514.99056636,0.00028296,3]
[329379118,1718292719533,-500.0,0.00028296,3]
[329379119,1718292719547,-500.0,0.00028296,3]
[329379120,1718292719559,-500.0,0.00028296,3]
[329379121,1718292719571,-500.0,0.00028296,3]
[329379122,1718292719585,-500.0,0.00028296,3]
[329379123,1718292719596,-500.0,0.00028296,3]
[329379124,1718292719608,-500.0,0.00028296,3]
[329379125,1718292719620,-500.0,0.00028296,3]
[329379126,1718292719633,-500.0,0.00028296,3]
[329379127,1718292719644,-500.0,0.00028296,3]
[329379128,1718292719662,-500.0,0.00028296,3]
[329379129,1718292719674,-500.0,0.00028296,3]
[329379130,1718292719704,-500.0,0.00028296,3]
[329379131,1718292719715,-500.0,0.00028296,3]
[329379132,1718292719749,-500.0,0.00028296,3]
[329379133,1718292719770,-572.32216741,0.00028296,3]
[329379134,1718292719782,-500.0,0.00028296,3]
[329379135,1718292719799,-500.0,0.00028296,3]
[329379136,1718292719821,-500.0,0.00028296,3]
[329379137,1718292719842,-500.0,0.00028296,3]
[329379138,1718292719857,-1306.39,0.00028296,3]
[329379139,1718292719888,-256.02,0.00028296,3]
[329379140,1718292719919,-500.0,0.00028296,3]
[329379141,1718292719955,-500.0,0.00028296,3]
[329379142,1718292719970,-500.0,0.00028296,3]
[329379143,1718292720025,-383.15,0.00028296,3]
[329379144,1718292720037,-500.0,0.00028296,3]
[329379145,1718292720057,-500.0,0.00028296,3]
[329379146,1718292720074,-500.0,0.00028296,3]
[329379147,1718292720117,-500.0,0.00028296,3]
[329379148,1718292720142,-500.0,0.00028296,3]
[329379149,1718292720158,-500.0,0.00028296,3]
[329379150,1718292720190,-563.36,0.00028296,3]
[329379151,1718292720208,-150.59,0.0002831,2]
[329379152,1718292720268,-152.1899555,0.0002833,2]
[329379153,1718292720297,-953.616187,0.00028395,2]
[329379154,1718292720317,-385.056803,0.00028395,2]
[329379155,1718292720348,-476.808093,0.00028395,2]
[329379156,1718292720361,-770.113606,0.00028395,2]
[329379157,1718292720373,-990.123474,0.00028395,2]
[329379158,1718292720390,-770.113606,0.00028395,2]
[329379159,1718292720401,-167.706844,0.00028395,2]
[329379160,1718292720412,-153.68250368,0.00028395,2]
[329379161,1718292720438,-178.21970292,0.00028401,2]
[329379162,1718292720460,-152.38627793,0.0002843,2]
[329379163,1718292720590,-153.2913197,0.00028472,2]
[329379164,1718292720602,-500.0,0.00028492,3]
[329379165,1718292720613,-500.0,0.00028492,3]
[329379166,1718292720626,-500.0,0.00028492,3]
[329379167,1718292720637,-500.0,0.00028492,3]
[329379168,1718292720648,-154.15,0.00028492,3]
[329379169,1718292720662,-724.51,0.00028492,3]
[329379170,1718292720682,-500.0,0.00028492,3]
[329379171,1718292720709,-500.0,0.00028492,3]
[329379172,1718292720733,-192.15916209,0.00028492,3]
[329379173,1718292720746,-318.71430103,0.00028492,3]
[329379174,1718292720758,-514.8,0.00028492,3]
[329379175,1718292720776,-500.0,0.00028492,3]
[329379176,1718292720812,-820.37,0.00028492,3]
[329379177,1718292720826,-1564.46,0.00028492,3]